fUST/lending_fUST_20240916
["ID","MTS","AMOUNT","RATE_DAILY","PERIOD"]
[338304098,1726488647645,-3285.57,0.00019178,2]
[338304099,1726488647654,-502.18867837,0.00019178,2]
[338304100,1726488647663,-500.0,0.00019178,2]
[338304101,1726488647672,-2437.4,0.00019178,2]
[338304102,1726488647682,-500.0,0.00019178,2]
[338304103,1726488647692,-299.0,0.00019178,2]
[338304104,1726488647701,-514.42799822,0.00019178,2]
[338304105,1726488647710,-500.0,0.00019178,2]
[338304106,1726488647719,-2617.22,0.00019178,2]
[338304107,1726488647729,-422.05476262,0.00019178,2]
[338304108,1726488647738,-500.0,0.00019178,2]
[338304109,1726488647748,-619.52,0.00019178,2]
[338304110,1726488647757,-500.0,0.00019178,2]
[338304111,1726488647767,-727.21,0.00019178,2]
[338304112,1726488647778,-1885.24,0.00019178,2]
[338304113,1726488647787,-500.0,0.00019178,2]
[338304114,1726488647797,-500.0,0.00019178,2]
[338304115,1726488647809,-1237.12126532,0.00019178,2]
[338304143,1726488648180,-500.0,0.00019136,2]
[338304145,1726488648191,-500.0,0.00019136,2]
[338304147,1726488648200,-500.0,0.00019136,2]
[338304149,1726488648210,-500.0,0.00019136,2]
[338304151,1726488648219,-500.0,0.00019136,2]
[338304152,1726488648229,-500.0,0.00019136,2]
[338304155,1726488648240,-289.26873468,0.00019178,2]
[338304157,1726488648249,-500.0,0.00019178,2]
[338304159,1726488648259,-500.0,0.00019178,2]
[338304161,1726488648269,-500.0,0.00019178,2]
[338304163,1726488648279,-1880.47,0.00019178,2]
[338304165,1726488648289,-2351.84,0.00019178,2]
[338304167,1726488648299,-1866.24,0.00019178,2]
[338304169,1726488648308,-401.04529506,0.00019178,2]
[338304170,1726488648317,-921.37,0.00019178,2]
[338304172,1726488648327,-500.0,0.00019178,2]
[338304174,1726488648337,-1007.8,0.00019178,2]
[338304176,1726488648346,-500.0,0.00019178,2]
[338304178,1726488648356,-500.0,0.00019178,2]
[338304180,1726488648366,-505.17601544,0.00019178,2]
[338304183,1726488648376,-500.0,0.00019178,2]
[338304184,1726488648386,-845.55,0.00019178,2]
[338304186,1726488648396,-544.22,0.00019178,2]
[338304188,1726488648405,-758.6,0.00019178,2]
[338304190,1726488648415,-978.25,0.00019178,2]
[338304192,1726488648424,-646.03,0.00019178,2]
[338304194,1726488648434,-500.0,0.00019178,2]
[338304196,1726488648443,-500.0,0.00019178,2]
[338304198,1726488648454,-500.0,0.00019178,2]
[338304200,1726488648465,-1290.78,0.00019178,2]
[338304202,1726488648475,-2642.08,0.00019178,2]
[338304204,1726488648485,-619.12,0.00019178,2]
[338304206,1726488648495,-500.0,0.00019178,2]
[338304208,1726488648505,-500.0,0.00019178,2]
[338304210,1726488648515,-500.0,0.00019178,2]
[338304212,1726488648524,-3423.0,0.00019178,2]
[338304214,1726488648534,-661.77,0.00019178,2]
[338304216,1726488648543,-1721.41,0.00019178,2]
[338304218,1726488648552,-6580.38922375,0.00019178,2]
[338312298,1726489658671,500.0,0.00028,120]
[338312299,1726489666162,500.0,0.00028,120]
[338312301,1726489672085,500.0,0.00028,120]
[338312310,1726489722919,1173.185542,0.00025,120]
[338312350,1726489838733,-300.0,0.0001726,2]
[338312351,1726489838743,-300.0,0.0001726,2]
[338312352,1726489838752,-1349.88037749,0.00017261,2]
[338312353,1726489838763,-23550.11962251,0.00017261,2]
[338312355,1726489838772,-3072.07301054,0.00017929,2]
[338312357,1726489838781,-60622.1213875,0.0001799,2]
[338312359,1726489838791,-19598.2422999,0.0001799,2]
[338312361,1726489838800,-500.0,0.00017999,2]
[338312363,1726489838809,-500.0,0.00017999,2]
[338312365,1726489838819,-500.0,0.00017999,2]
[338312366,1726489838829,-410.53062379,0.00017999,2]
[338312367,1726489838838,-500.0,0.00017999,2]
[338312368,1726489838847,-500.0,0.00017999,2]
[338312369,1726489838857,-500.0,0.00017999,2]
[338312370,1726489838866,-500.0,0.00017999,2]
[338312371,1726489838875,-500.0,0.00017999,2]
[338312372,1726489838884,-500.0,0.00017999,2]
[338312373,1726489838894,-500.0,0.00017999,2]
[338312374,1726489838903,-419.86353493,0.00017999,2]
[338312375,1726489838912,-500.0,0.00017999,2]
[338312376,1726489838922,-500.0,0.00017999,2]
[338312377,1726489838931,-500.0,0.00017999,2]
[338312378,1726489838940,-500.0,0.00017999,2]
[338312379,1726489838950,-500.0,0.00017999,2]
[338312380,1726489838959,-500.0,0.00017999,2]
[338312381,1726489838969,-500.0,0.00017999,2]
[338312382,1726489838978,-500.0,0.00017999,2]
[338312383,1726489838997,-500.0,0.00017999,2]
[338312384,1726489839006,-500.0,0.00017999,2]
[338312385,1726489839015,-500.0,0.00017999,2]
[338312386,1726489839025,-500.0,0.00017999,2]
[338312387,1726489839034,-500.0,0.00017999,2]
[338312388,1726489839043,-500.0,0.00017999,2]
[338312389,1726489839052,-500.0,0.00017999,2]
[338312390,1726489839062,-500.0,0.00017999,2]
[338312391,1726489839071,-500.0,0.00017999,2]
[338312392,1726489839080,-500.0,0.00017999,2]
[338312393,1726489839089,-500.0,0.00017999,2]
[338312394,1726489839098,-500.0,0.00017999,2]
[338312395,1726489839107,-500.0,0.00017999,2]
[338312396,1726489839116,-500.0,0.00017999,2]
[338312397,1726489839125,-500.0,0.00017999,2]
[338312398,1726489839136,-500.0,0.00017999,2]
[338312399,1726489839145,-500.0,0.00017999,2]
[338312400,1726489839154,-500.0,0.00017999,2]
[338312401,1726489839167,-500.0,0.00017999,2]
[338312402,1726489839176,-500.0,0.00017999,2]
[338312403,1726489839185,-500.0,0.00017999,2]
[338312404,1726489839195,-500.0,0.00017999,2]
[338312405,1726489839205,-500.0,0.00017999,2]
[338312406,1726489839214,-500.0,0.00017999,2]
[338312407,1726489839224,-250.84240881,0.00017999,2]
[338312408,1726489839235,-84464.64681775,0.00018,2]
[338312409,1726489839245,-150.0,0.00018362,2]
[338312410,1726489839255,-10010.12500291,0.00018447,2]
[338312411,1726489839265,-3072.07301048,0.00018482,2]
[338312412,1726489839275,-10000.0,0.000188,2]
[338312413,1726489839285,-150.0,0.000188,2]
[338312414,1726489839294,-2969.5685324,0.000188,2]
[338312415,1726489839304,-420.0,0.00018847,2]
[338312416,1726489839313,-150.0,0.00018866,2]
[338312417,1726489839323,-6591.85840213,0.00018949,2]
[338312418,1726489839333,-420.0,0.00018986,2]
[338312419,1726489839342,-60622.1213875,0.00018989,3]
[338312420,1726489839352,-19598.2422999,0.00018989,3]
[338312421,1726489839362,-500.0,0.00018989,2]
[338312422,1726489839373,-500.0,0.00018989,2]
[338312423,1726489839383,-162.33567537,0.00018989,2]
[338312424,1726489839392,-446.88407194,0.00018989,2]
[338312425,1726489839402,-500.0,0.00018989,2]
[338312426,1726489839412,-500.0,0.00018989,2]
[338312427,1726489839421,-500.0,0.00018989,2]
[338312428,1726489839431,-500.0,0.00018989,2]
[338312429,1726489839441,-500.0,0.00018989,2]
[338312430,1726489839451,-500.0,0.00018989,2]
[338312431,1726489839461,-500.0,0.00018989,2]
[338312432,1726489839471,-639.96651822,0.00018989,2]
[338312433,1726489839481,-500.0,0.00018989,2]
[338312434,1726489839490,-500.0,0.00018989,2]
[338312435,1726489839500,-500.0,0.00018989,2]
[338312436,1726489839510,-500.0,0.00018989,2]
[338312437,1726489839519,-500.0,0.00018989,2]
[338312438,1726489839529,-200.41491518,0.00018989,2]
[338312439,1726489839539,-500.0,0.00018989,2]
[338312440,1726489839549,-161.41755476,0.00018989,2]
[338312441,1726489839558,-500.0,0.00018989,2]
[338312442,1726489839568,-500.0,0.00018989,2]
[338312443,1726489839578,-500.0,0.00018989,2]
[338312444,1726489839591,-500.0,0.00018989,2]
[338312445,1726489839600,-500.0,0.00018989,2]
[338312446,1726489839610,-500.0,0.00018989,2]
[338312447,1726489839620,-500.0,0.00018989,2]
[338312448,1726489839630,-60622.1213875,0.0001899,3]
[338312449,1726489839640,-19598.2422999,0.0001899,3]
[338312450,1726489839650,-20000.0,0.00019,30]
[338312451,1726489839660,-56397.08,0.00019,2]
[338312452,1726489839670,-13753.10587856,0.00019,2]
[338312453,1726489839679,-235.01436437,0.00019,2]
[338312454,1726489839689,-41274.73226171,0.00019026,3]
[338312467,1726489840625,-19347.38912579,0.00019026,3]
[338312468,1726489840636,-19598.2422999,0.00019026,3]
[338312469,1726489840646,-3072.07301048,0.00019035,2]
[338312470,1726489840655,-2729.26691231,0.00019036,2]
[338312471,1726489840665,-2180.34286551,0.00019048,2]
[338312472,1726489840675,-150.0,0.0001905,2]
[338312473,1726489840686,-1000.0,0.0001905,2]
[338312474,1726489840696,-10000.0,0.000191,2]
[338312475,1726489840705,-60622.1213875,0.0001913,3]
[338312476,1726489840715,-39196.4845997,0.0001913,3]
[338312477,1726489840724,-39196.4845997,0.00019137,3]
[338312478,1726489840735,-156785.938399,0.00019138,3]
[338312479,1726489840746,-19598.2422999,0.0001914,3]
[338312480,1726489840756,-63978.06422297,0.0001916,5]
[338312481,1726489840765,-87735.28746717,0.0001916,2]
[338312482,1726489840775,-1000.0,0.00019167,2]
[338312483,1726489840785,-1000.0,0.00019167,2]
[338312484,1726489840795,-500.0,0.00019173,2]
[338312485,1726489840805,-500.0,0.00019173,2]
[338312486,1726489840815,-500.0,0.00019173,2]
[338312487,1726489840825,-175.98272928,0.00019173,2]
[338312488,1726489840835,-500.0,0.00019173,2]
[338312489,1726489840844,-510.05632153,0.00019173,2]
[338312490,1726489840853,-160.0,0.00019173,2]
[338312491,1726489840863,-500.0,0.00019173,2]
[338312492,1726489840873,-500.0,0.00019173,2]
[338312493,1726489840883,-500.0,0.00019173,2]
[338312494,1726489840893,-500.0,0.00019173,2]
[338312495,1726489840902,-500.0,0.00019173,2]
[338312496,1726489840912,-500.0,0.00019173,2]
[338312497,1726489840922,-500.0,0.00019173,2]
[338312498,1726489840932,-500.0,0.00019173,2]
[338312499,1726489840941,-500.25810198,0.00019173,2]
[338312500,1726489840951,-500.0,0.00019173,2]
[338312501,1726489840961,-500.0,0.00019173,2]
[338312502,1726489840971,-500.0,0.00019173,2]
[338312503,1726489840980,-500.0,0.00019173,2]
[338312504,1726489840991,-500.0,0.00019173,2]
[338312505,1726489841001,-456.14260723,0.00019173,2]
[338312506,1726489841011,-500.0,0.00019173,2]
[338312507,1726489841021,-5748.28431012,0.00019178,5]
[338312508,1726489841030,-500.0,0.00019178,2]
[338312509,1726489841039,-500.0,0.00019178,2]
[338312510,1726489841049,-500.0,0.00019178,2]
[338312511,1726489841058,-500.0,0.00019178,2]
[338312512,1726489841068,-500.0,0.00019178,2]
[338312513,1726489841078,-500.0,0.00019178,2]
[338312514,1726489841087,-500.0,0.00019178,2]
[338312515,1726489841097,-500.0,0.00019178,2]
[338312516,1726489841106,-500.0,0.00019178,2]
[338312517,1726489841116,-500.0,0.00019178,2]
[338312518,1726489841126,-500.0,0.00019178,2]
[338312519,1726489841135,-500.0,0.00019178,2]
[338312520,1726489841144,-500.0,0.00019178,2]
[338312521,1726489841154,-500.0,0.00019178,2]
[338312522,1726489841163,-500.0,0.00019178,2]
[338312523,1726489841173,-501.02223224,0.00019178,2]
[338312524,1726489841183,-630.96870364,0.00019178,2]
[338312525,1726489841192,-500.0,0.00019178,2]
[338312526,1726489841202,-500.0,0.00019178,2]
[338312527,1726489841211,-1705.86,0.00019178,2]
[338312528,1726489841221,-1134.16,0.00019178,2]
[338312529,1726489841231,-500.0,0.00019178,2]
[338312530,1726489841242,-503.96621713,0.00019178,2]
[338312531,1726489841251,-500.0,0.00019178,2]
[338312532,1726489841261,-810.21,0.00019178,2]
[338312533,1726489841270,-339.40549959,0.00019178,2]
[338312534,1726489841280,-579.58,0.00019178,2]
[338312535,1726489841290,-500.0,0.00019178,2]
[338312536,1726489841299,-500.0,0.00019178,2]
[338312537,1726489841309,-500.0,0.00019178,2]
[338312538,1726489841318,-836.06,0.00019178,2]
[338312539,1726489841327,-526.55640727,0.00019178,2]
[338312540,1726489841337,-500.0,0.00019178,2]
[338312541,1726489841346,-500.0,0.00019178,2]
[338312542,1726489841355,-327.29331449,0.00019178,2]
[338312543,1726489841365,-500.0,0.00019178,2]
[338312544,1726489841374,-500.0,0.00019178,2]
[338312545,1726489841383,-500.0,0.00019178,2]
[338312546,1726489841393,-1763.52,0.00019178,2]
[338312547,1726489841402,-500.0,0.00019178,2]
[338312548,1726489841411,-500.0,0.00019178,2]
[338312549,1726489841420,-500.0,0.00019178,2]
[338312550,1726489841430,-500.0,0.00019178,2]
[338312551,1726489841440,-500.0,0.00019178,2]
[338312552,1726489841449,-500.0,0.00019178,2]
[338312553,1726489841459,-484.52549303,0.00019178,2]
[338312554,1726489841472,-134.29256633,0.00019178,2]
[338312555,1726489841697,-616.25950313,0.00019178,2]
[338312556,1726489841708,-163.5912942,0.00019178,2]
[338312557,1726489841718,-1425.05,0.00019178,2]
[338312558,1726489841728,-523.58732554,0.00019178,2]
[338312559,1726489841738,-500.0,0.00019178,2]
[338312560,1726489841747,-500.0,0.00019178,2]
[338312561,1726489841757,-500.0,0.00019178,2]
[338312562,1726489841766,-1391.41,0.00019178,2]
[338312563,1726489841775,-500.0,0.00019178,2]
[338312564,1726489841784,-500.0,0.00019178,2]
[338312565,1726489841793,-500.0,0.00019178,2]
[338312566,1726489841803,-544.51130896,0.00019178,2]
[338312567,1726489841812,-500.0,0.00019178,2]
[338312568,1726489841822,-500.0,0.00019178,2]
[338312569,1726489841832,-200.0,0.00019178,2]
[338312570,1726489841842,-500.0,0.00019178,2]
[338312571,1726489841851,-1057.82,0.00019178,2]
[338312572,1726489841861,-500.0,0.00019178,2]
[338312573,1726489841871,-500.0,0.00019178,2]
[338312574,1726489841881,-582.19,0.00019178,2]
[338312575,1726489841891,-500.0,0.00019178,2]
[338312576,1726489841901,-886.41,0.00019178,2]
[338312577,1726489841911,-500.0,0.00019178,2]
[338312578,1726489841920,-500.0,0.00019178,2]
[338312579,1726489841930,-500.0,0.00019178,2]
[338312580,1726489841940,-1490.23,0.00019178,2]
[338312581,1726489841950,-716.51,0.00019178,2]
[338312582,1726489841961,-1019.18,0.00019178,2]
[338312583,1726489841970,-500.0,0.00019178,2]
[338312584,1726489841980,-500.0,0.00019178,2]
[338312585,1726489841996,-500.0,0.00019178,2]
[338312586,1726489842007,-500.0,0.00019178,2]
[338312587,1726489842019,-500.0,0.00019178,2]
[338312588,1726489842029,-500.0,0.00019178,2]
[338312589,1726489842040,-500.0,0.00019178,2]
[338312590,1726489842049,-500.0,0.00019178,2]
[338312591,1726489842059,-500.85598556,0.00019178,2]
[338312592,1726489842069,-506.52725651,0.00019178,2]
[338312593,1726489842079,-500.0,0.00019178,2]
[338312594,1726489842089,-790.27,0.00019178,2]
[338312595,1726489842098,-500.0,0.00019178,2]
[338312596,1726489842107,-119.16475977,0.00019178,2]
[338312597,1726489842121,-380.83524023,0.00019178,2]
[338312598,1726489842131,-871.19,0.00019178,2]
[338312599,1726489842141,-488.92930562,0.00019178,2]
[338312618,1726489843479,-11.07069438,0.00019178,2]
[338312620,1726489843492,-500.0,0.00019178,2]
[338312622,1726489843501,-500.0,0.00019178,2]
[338312624,1726489843511,-500.0,0.00019178,2]
[338312626,1726489843521,-879.6,0.00019178,2]
[338312628,1726489843530,-502.5517105,0.00019178,2]
[338312630,1726489843539,-500.0,0.00019178,2]
[338312632,1726489843549,-500.0,0.00019178,2]
[338312634,1726489843558,-516.25750328,0.00019178,2]
[338312635,1726489843568,-640.48,0.00019178,2]
[338312636,1726489843577,-500.0,0.00019178,2]
[338312637,1726489843590,-502.88778492,0.00019178,2]
[338312639,1726489843599,-500.0,0.00019178,2]
[338312640,1726489843609,-542.92,0.00019178,2]
[338312642,1726489843619,-500.0,0.00019178,2]
[338312644,1726489843628,-1862.3,0.00019178,2]
[338312645,1726489843637,-500.0,0.00019178,2]
[338312647,1726489843646,-500.0,0.00019178,2]
[338312648,1726489843655,-500.0,0.00019178,2]
[338312649,1726489843665,-543.04,0.00019178,2]
[338312650,1726489843674,-505.24352932,0.00019178,2]
[338312651,1726489843683,-1052.89,0.00019178,2]
[338312652,1726489843692,-500.0,0.00019178,2]
[338312653,1726489843702,-500.0,0.00019178,2]
[338312654,1726489843711,-500.0,0.00019178,2]
[338312655,1726489843720,-500.0,0.00019178,2]
[338312656,1726489843729,-500.0,0.00019178,2]
[338312657,1726489843739,-500.0,0.00019178,2]
[338312658,1726489843749,-501.01192776,0.00019178,2]
[338312659,1726489843758,-500.0,0.00019178,2]
[338312660,1726489843767,-500.0,0.00019178,2]
[338312661,1726489843776,-500.0,0.00019178,2]
[338312662,1726489843786,-500.0,0.00019178,2]
[338312663,1726489843795,-923.41,0.00019178,2]
[338312664,1726489843804,-763.46,0.00019178,2]
[338312665,1726489843813,-500.0,0.00019178,2]
[338312666,1726489843823,-500.0,0.00019178,2]
[338312667,1726489843832,-500.0,0.00019178,2]
[338312668,1726489843842,-500.0,0.00019178,2]
[338312669,1726489843852,-500.0,0.00019178,2]
[338312670,1726489843861,-500.0,0.00019178,2]
[338312671,1726489843870,-500.0,0.00019178,2]
[338312672,1726489843880,-500.0,0.00019178,2]
[338312673,1726489843889,-501.57699895,0.00019178,2]
[338312674,1726489843899,-500.0,0.00019178,2]
[338312675,1726489843909,-500.0,0.00019178,2]
[338312676,1726489843918,-500.85140509,0.00019178,2]
[338312677,1726489843927,-732.34,0.00019178,2]
[338312678,1726489843936,-870.3,0.00019178,2]
[338312679,1726489843946,-500.0,0.00019178,2]
[338312680,1726489843955,-500.0,0.00019178,2]
[338312681,1726489843964,-500.0,0.00019178,2]
[338312682,1726489843974,-500.0,0.00019178,2]
[338312683,1726489843984,-500.0,0.00019178,2]
[338312684,1726489843994,-500.0,0.00019178,2]
[338312685,1726489844003,-500.0,0.00019178,2]
[338312686,1726489844014,-669.82,0.00019178,2]
[338312687,1726489844023,-611.37,0.00019178,2]
[338312688,1726489844032,-1536.58,0.00019178,2]
[338312689,1726489844042,-509.40659585,0.00019178,2]
[338312690,1726489844051,-615.62,0.00019178,2]
[338312691,1726489844060,-500.0,0.00019178,2]
[338312692,1726489844069,-500.0,0.00019178,2]
[338312693,1726489844078,-500.0,0.00019178,2]
[338312694,1726489844087,-505.21947692,0.00019178,2]
[338312695,1726489844096,-500.0,0.00019178,2]
[338312696,1726489844105,-500.0,0.00019178,2]
[338312697,1726489844115,-500.0,0.00019178,2]
[338312698,1726489844125,-500.0,0.00019178,2]
[338312699,1726489844134,-500.0,0.00019178,2]
[338312700,1726489844144,-1874.57,0.00019178,2]
[338312701,1726489844154,-500.0,0.00019178,2]
[338312702,1726489844163,-500.0,0.00019178,2]
[338312703,1726489844172,-500.0,0.00019178,2]
[338312704,1726489844181,-500.0,0.00019178,2]
[338312705,1726489844190,-500.0,0.00019178,2]
[338312706,1726489844200,-500.0,0.00019178,2]
[338312707,1726489844210,-449.8630813,0.00019178,2]
[338312708,1726489844220,-500.0,0.00019178,2]
[338312709,1726489844229,-500.0,0.00019178,2]
[338312710,1726489844239,-503.89687694,0.00019178,2]
[338312711,1726489844249,-503.82450348,0.00019178,2]
[338312712,1726489844259,-500.0,0.00019178,2]
[338312713,1726489844268,-500.0,0.00019178,2]
[338312714,1726489844277,-500.0,0.00019178,2]
[338312715,1726489844286,-500.0,0.00019178,2]
[338312716,1726489844295,-979.27,0.00019178,2]
[338312717,1726489844304,-500.0,0.00019178,2]
[338312718,1726489844313,-500.0,0.00019178,2]
[338312719,1726489844323,-628.23,0.00019178,2]
[338312720,1726489844332,-500.0,0.00019178,2]
[338312721,1726489844342,-500.0,0.00019178,2]
[338312722,1726489844351,-500.0,0.00019178,2]
[338312723,1726489844360,-500.0,0.00019178,2]
[338312724,1726489844370,-500.0,0.00019178,2]
[338312725,1726489844379,-500.0,0.00019178,2]
[338312726,1726489844389,-1252.54,0.00019178,2]
[338312727,1726489844398,-500.0,0.00019178,2]
[338312728,1726489844407,-647.34,0.00019178,2]
[338312729,1726489844416,-500.0,0.00019178,2]
[338312730,1726489844426,-500.0,0.00019178,2]
[338312731,1726489844435,-500.0,0.00019178,2]
[338312732,1726489844444,-500.0,0.00019178,2]
[338312733,1726489844453,-2497.31,0.00019178,2]
[338312734,1726489844463,-500.0,0.00019178,2]
[338312735,1726489844472,-500.0,0.00019178,2]
[338312736,1726489844481,-500.0,0.00019178,2]
[338312737,1726489844491,-500.0,0.00019178,2]
[338312738,1726489844500,-500.0,0.00019178,2]
[338312739,1726489844509,-504.51191495,0.00019178,2]
[338312740,1726489844519,-500.0,0.00019178,2]
[338312741,1726489844529,-603.55,0.00019178,2]
[338312742,1726489844539,-500.0,0.00019178,2]
[338312743,1726489844548,-500.0,0.00019178,2]
[338312744,1726489844557,-1954.41,0.00019178,2]
[338312745,1726489844567,-500.0,0.00019178,2]
[338312746,1726489844576,-500.0,0.00019178,2]
[338312747,1726489844589,-500.0,0.00019178,2]
[338312748,1726489844599,-510.7897887,0.00019178,2]
[338312749,1726489844608,-504.13817698,0.00019178,2]
[338312750,1726489844617,-744.56,0.00019178,2]
[338312751,1726489844626,-500.0,0.00019178,2]
[338312752,1726489844635,-479.33702787,0.00019178,2]
[338312753,1726489844644,-500.0,0.00019178,2]
[338312754,1726489844654,-500.0,0.00019178,2]
[338312755,1726489844664,-500.0,0.00019178,2]
[338312756,1726489844674,-500.0,0.00019178,2]
[338312757,1726489844684,-429.31,0.00019178,2]
[338312758,1726489844693,-1321.92,0.00019178,2]
[338312759,1726489844702,-500.0,0.00019178,2]
[338312760,1726489844712,-500.0,0.00019178,2]
[338312761,1726489844721,-500.0,0.00019178,2]
[338312762,1726489844730,-500.0,0.00019178,2]
[338312763,1726489844740,-500.0,0.00019178,2]
[338312764,1726489844751,-500.0,0.00019178,2]
[338312765,1726489844761,-1761.99,0.00019178,2]
[338312766,1726489844770,-500.0,0.00019178,2]
[338312767,1726489844779,-507.98027416,0.00019178,2]
[338312768,1726489844789,-500.0,0.00019178,2]
[338312769,1726489844798,-500.0,0.00019178,2]
[338312770,1726489844808,-500.0,0.00019178,2]
[338312771,1726489844817,-544.91,0.00019178,2]
[338312772,1726489844826,-500.0,0.00019178,2]
[338312773,1726489844836,-500.0,0.00019178,2]
[338312774,1726489844845,-1932.87,0.00019178,2]
[338312775,1726489844854,-500.0,0.00019178,2]
[338312776,1726489844864,-529.68,0.00019178,2]
[338312777,1726489844873,-500.0,0.00019178,2]
[338312778,1726489844882,-501.83934718,0.00019178,2]
[338312779,1726489844891,-502.15995466,0.00019178,2]
[338312780,1726489844901,-500.0,0.00019178,2]
[338312781,1726489844909,-500.0,0.00019178,2]
[338312782,1726489844919,-500.0,0.00019178,2]
[338312783,1726489844928,-1663.59,0.00019178,2]
[338312784,1726489844937,-500.0,0.00019178,2]
[338312785,1726489844946,-500.0,0.00019178,2]
[338312786,1726489844955,-746.93,0.00019178,2]
[338312787,1726489844964,-505.14315811,0.00019178,2]
[338312788,1726489844974,-500.0,0.00019178,2]
[338312789,1726489844983,-510.50372206,0.00019178,2]
[338312790,1726489844994,-500.0,0.00019178,2]
[338312791,1726489845003,-567.13309165,0.00019178,2]
[338312792,1726489845013,-1159.35,0.00019178,2]
[338312793,1726489845022,-502.87570901,0.00019178,2]
[338312794,1726489845031,-500.0,0.00019178,2]
[338312795,1726489845041,-500.0,0.00019178,2]
[338312796,1726489845050,-500.0,0.00019178,2]
[338312797,1726489845060,-823.53,0.00019178,2]
[338312798,1726489845069,-500.0,0.00019178,2]
[338312799,1726489845078,-502.52044715,0.00019178,2]
[338312800,1726489845087,-500.0,0.00019178,2]
[338312801,1726489845098,-503.87805186,0.00019178,2]
[338312802,1726489845107,-1459.05,0.00019178,2]
[338312803,1726489845117,-178.2130102,0.00019178,2]
[338312804,1726489845126,-500.0,0.00019178,2]
[338312805,1726489845135,-500.0,0.00019178,2]
[338312806,1726489845145,-500.0,0.00019178,2]
[338312807,1726489845154,-500.0,0.00019178,2]
[338312808,1726489845164,-500.0,0.00019178,2]
[338312809,1726489845173,-500.0,0.00019178,2]
[338312810,1726489845182,-417.03367371,0.00019178,2]
[338312811,1726489845192,-376.94589899,0.00019178,2]
[338312812,1726489845201,-1020.82,0.00019178,2]
[338312813,1726489845210,-538.08,0.00019178,2]
[338312814,1726489845219,-522.82368846,0.00019178,2]
[338312815,1726489845228,-2091.97,0.00019178,2]
[338312816,1726489845237,-500.0,0.00019178,2]
[338312817,1726489845246,-1049.87,0.00019178,2]
[338312818,1726489845256,-500.0,0.00019178,2]
[338312819,1726489845265,-1910.06,0.00019178,2]
[338312820,1726489845274,-577.28958153,0.00019178,2]
[338312821,1726489845283,-544.15,0.00019178,2]
[338312822,1726489845293,-500.0,0.00019178,2]
[338312823,1726489845302,-531.16792862,0.00019178,2]
[338312824,1726489845311,-500.0,0.00019178,2]
[338312825,1726489845321,-733.9,0.00019178,2]
[338312826,1726489845330,-500.0,0.00019178,2]
[338312827,1726489845339,-503.13143938,0.00019178,2]
[338312828,1726489845348,-500.0,0.00019178,2]
[338312829,1726489845359,-500.0,0.00019178,2]
[338312830,1726489845368,-500.0,0.00019178,2]
[338312831,1726489845378,-2729.82,0.00019178,2]
[338312832,1726489845388,-500.0,0.00019178,2]
[338312833,1726489845398,-500.0,0.00019178,2]
[338312834,1726489845407,-500.0,0.00019178,2]
[338312835,1726489845416,-500.0,0.00019178,2]
[338312836,1726489845427,-719.8,0.00019178,2]